fUST/lending_fUST_20240208
["ID","MTS","AMOUNT","RATE_DAILY","PERIOD"]
[313412686,1707327046048,-200.0,0.00030383,2]
[313412688,1707327046056,-200.0,0.00030383,2]
[313412690,1707327046066,-203.51049,0.00030383,2]
[313412692,1707327046075,-995.49,0.0003041,3]
[313412695,1707327046085,-3604.7,0.0003041,3]
[313412697,1707327046105,-618.17,0.0003041,3]
[313412700,1707327046119,-4410.62,0.0003041,3]
[313412702,1707327046133,-1001.16,0.0003041,3]
[313412705,1707327046147,-1071.64,0.0003041,3]
[313412707,1707327046159,-1393.52,0.0003041,3]
[313412709,1707327046171,-506.39,0.0003041,3]
[313412711,1707327046181,-500.0,0.0003041,3]
[313412714,1707327046195,-2158.11,0.0003041,3]
[313412716,1707327046207,-1857.57,0.0003041,3]
[313412719,1707327046220,-1096.52,0.0003041,3]
[313412721,1707327046232,-5436.93,0.0003041,3]
[313412723,1707327046245,-500.0,0.0003041,3]
[313412726,1707327046258,-917.3,0.0003041,3]
[313412728,1707327046271,-1188.61,0.0003041,3]
[313412730,1707327046289,-500.0,0.0003041,3]
[313412732,1707327046303,-1219.12,0.0003041,3]
[313412734,1707327046314,-2324.05,0.0003041,3]
[313412736,1707327046326,-500.0,0.0003041,3]
[313412738,1707327046338,-151.0,0.00030431,2]
[313412739,1707327046351,-995.49,0.00030684,3]
[313412741,1707327046363,-3604.7,0.00030684,3]
[313412743,1707327046376,-618.17,0.00030684,3]
[313412744,1707327046387,-4410.62,0.00030684,3]
[313412745,1707327046399,-1001.16,0.00030684,3]
[313412746,1707327046411,-1071.64,0.00030684,3]
[313412747,1707327046423,-1393.52,0.00030684,3]
[313412748,1707327046436,-506.39,0.00030684,3]
[313412750,1707327046447,-500.0,0.00030684,3]
[313412752,1707327046457,-2158.11,0.00030684,3]
[313412754,1707327046467,-1857.57,0.00030684,3]
[313412757,1707327046482,-1096.52,0.00030684,3]
[313412758,1707327046495,-5436.93,0.00030684,3]
[313412759,1707327046506,-500.0,0.00030684,3]
[313412760,1707327046519,-917.3,0.00030684,3]
[313412761,1707327046531,-1188.61,0.00030684,3]
[313412762,1707327046546,-500.0,0.00030684,3]
[313412763,1707327046556,-1219.12,0.00030684,3]
[313412764,1707327046569,-2324.05,0.00030684,3]
[313412765,1707327046580,-500.0,0.00030684,3]
[313412766,1707327046591,-200.0,0.00030868,15]
[313412767,1707327046604,-348.0,0.00030868,15]
[313412768,1707327046618,-995.49,0.00030958,3]
[313412769,1707327046631,-3604.7,0.00030958,3]
[313412770,1707327046643,-618.17,0.00030958,3]
[313412771,1707327046655,-4410.62,0.00030958,3]
[313412772,1707327046668,-1001.16,0.00030958,3]
[313412773,1707327046680,-1071.64,0.00030958,3]
[313412774,1707327046690,-1393.52,0.00030958,3]
[313412775,1707327046701,-506.39,0.00030958,3]
[313412776,1707327046711,-500.0,0.00030958,3]
[313412777,1707327046722,-2158.11,0.00030958,3]
[313412778,1707327046733,-1857.57,0.00030958,3]
[313412779,1707327046745,-1096.52,0.00030958,3]
[313412780,1707327046758,-5436.93,0.00030958,3]
[313412781,1707327046769,-500.0,0.00030958,3]
[313412782,1707327046780,-917.3,0.00030958,3]
[313412783,1707327046796,-1188.61,0.00030958,3]
[313412784,1707327046809,-500.0,0.00030958,3]
[313412785,1707327046821,-1219.12,0.00030958,3]
[313412786,1707327046832,-2324.05,0.00030958,3]
[313412787,1707327046843,-500.0,0.00030958,3]
[313412788,1707327046854,-448.36095323,0.00030997,4]
[313412789,1707327046865,-204.98988009,0.00030997,4]
[313412790,1707327046876,-19910.76123758,0.00030999,4]
[313412791,1707327046886,-151.0,0.00030999,2]
[313412792,1707327046898,-151.0,0.00030999,2]
[313412793,1707327046910,-151.0,0.00030999,2]
[313412794,1707327046921,-164.379198,0.00030999,2]
[313412795,1707327046932,-151.0,0.00030999,2]
[313412796,1707327046943,-151.0,0.00030999,2]
[313412797,1707327046955,-151.0,0.00030999,2]
[313412798,1707327046965,-20000.0,0.00031,2]
[313412799,1707327046976,-1947.07287408,0.00031,2]
[313412800,1707327046987,-2808.86098355,0.00031,4]
[313412801,1707327046998,-300.0,0.00031,4]
[313412802,1707327047009,-765.76707638,0.00031,2]
[313412803,1707327047020,-155.01240099,0.00031,2]
[313412804,1707327047030,-1200.0,0.00031,4]
[313412805,1707327047044,-688.86644347,0.00031,7]
[313412806,1707327047055,-322.17784071,0.00031,7]
[313412807,1707327047066,-284.09442988,0.00031,4]
[313412808,1707327047077,-1000.0,0.00031,31]
[313412809,1707327047088,-264.29954822,0.00031,7]
[313412810,1707327047099,-207.52504564,0.00031,7]
[313412811,1707327047109,-995.49,0.00031232,3]
[313412812,1707327047120,-3604.7,0.00031232,3]
[313412813,1707327047132,-618.17,0.00031232,3]
[313412814,1707327047143,-4410.62,0.00031232,3]
[313412815,1707327047154,-1001.16,0.00031232,3]
[313412816,1707327047164,-1071.64,0.00031232,3]
[313412817,1707327047174,-1393.52,0.00031232,3]
[313412818,1707327047183,-506.39,0.00031232,3]
[313412819,1707327047193,-500.0,0.00031232,3]
[313412820,1707327047203,-2158.11,0.00031232,3]
[313412821,1707327047212,-1857.57,0.00031232,3]
[313412822,1707327047221,-1096.52,0.00031232,3]
[313412823,1707327047231,-5436.93,0.00031232,3]
[313412824,1707327047240,-500.0,0.00031232,3]
[313412825,1707327047250,-917.3,0.00031232,3]
[313412826,1707327047260,-1188.61,0.00031232,3]
[313412827,1707327047388,-500.0,0.00031232,3]
[313412828,1707327047401,-1219.12,0.00031232,3]
[313412829,1707327047411,-2324.05,0.00031232,3]
[313412830,1707327047420,-500.0,0.00031232,3]
[313412831,1707327047429,-151.0,0.00031506,2]
[313412832,1707327047439,-151.0,0.00031506,2]
[313412833,1707327047448,-995.49,0.00031506,3]
[313412834,1707327047457,-3604.7,0.00031506,3]
[313412835,1707327047468,-618.17,0.00031506,3]
[313412836,1707327047477,-4410.62,0.00031506,3]
[313412837,1707327047487,-1001.16,0.00031506,3]
[313412838,1707327047497,-1071.64,0.00031506,3]
[313412839,1707327047506,-1393.52,0.00031506,3]
[313412840,1707327047516,-506.39,0.00031506,3]
[313412841,1707327047525,-500.0,0.00031506,3]
[313412842,1707327047536,-2158.11,0.00031506,3]
[313412843,1707327047546,-1857.57,0.00031506,3]
[313412844,1707327047567,-1096.52,0.00031506,3]
[313412845,1707327047578,-5436.93,0.00031506,3]
[313412846,1707327047588,-500.0,0.00031506,3]
[313412847,1707327047598,-917.3,0.00031506,3]
[313412848,1707327047610,-1188.61,0.00031506,3]
[313412849,1707327047620,-500.0,0.00031506,3]
[313412850,1707327047633,-1219.12,0.00031506,3]
[313412851,1707327047642,-2324.05,0.00031506,3]
[313412852,1707327047653,-500.0,0.00031506,3]
[313412853,1707327047663,-151.0,0.00031537,2]
[313412854,1707327047672,-3328.64967646,0.00031678,4]
[313412855,1707327047682,-995.49,0.0003178,3]
[313412856,1707327047692,-3604.7,0.0003178,3]
[313412857,1707327047702,-618.17,0.0003178,3]
[313412858,1707327047711,-4410.62,0.0003178,3]
[313412859,1707327047721,-1001.16,0.0003178,3]
[313412860,1707327047731,-1071.64,0.0003178,3]
[313412861,1707327047740,-1393.52,0.0003178,3]
[313412862,1707327047751,-506.39,0.0003178,3]
[313412863,1707327047761,-500.0,0.0003178,3]
[313412864,1707327047771,-2158.11,0.0003178,3]
[313412865,1707327047780,-1857.57,0.0003178,3]
[313412866,1707327047793,-1096.52,0.0003178,3]
[313412867,1707327047802,-5436.93,0.0003178,3]
[313412868,1707327047811,-500.0,0.0003178,3]
[313412869,1707327047821,-917.3,0.0003178,3]
[313412870,1707327047831,-1188.61,0.0003178,3]
[313412871,1707327047840,-500.0,0.0003178,3]
[313412872,1707327047850,-1219.12,0.0003178,3]
[313412873,1707327047859,-2324.05,0.0003178,3]
[313412874,1707327047868,-620.00008275,0.00031866,2]
[313412875,1707327047877,-1430.3260146,0.00031878,14]
[313412876,1707327047887,-150.0,0.00031957,2]
[313412877,1707327047896,-231.33965723,0.00031998,4]
[313412878,1707327047906,-262.25287913,0.00031998,4]
[313412879,1707327047915,-644.86914231,0.00031998,4]
[313412880,1707327047924,-155.73163206,0.00031998,4]
[313412881,1707327047933,-426.88835692,0.00031998,2]
[313412882,1707327047942,-1262.10938839,0.00031998,4]
[313412883,1707327047952,-326.17134224,0.00031998,4]
[313412884,1707327047961,-155.02480397,0.00031998,4]
[313412885,1707327047970,-155.76905119,0.00031998,4]
[313412886,1707327047979,-155.05116031,0.00031998,4]
[313412887,1707327047989,-158.24685253,0.00031998,4]
[313412888,1707327047998,-19947.54896493,0.00031999,4]
[313412889,1707328049110,-154.95351395,0.0002088,2]
[313412890,1707328049135,-1946.99903392,0.0002088,2]
[313412891,1707328049154,-951.67903154,0.00020881,2]
[313412892,1707328049175,-330.4947575,0.00022209,2]
[313412893,1707328049196,-179.18619241,0.0002221,2]
[313412894,1707328049218,-3535.6104586,0.0002221,2]
[313412896,1707328148123,-154.95351395,0.00020874,2]
[313412897,1707328148144,-175.69575442,0.00020875,2]
[313412898,1707328148165,-590.02632581,0.00020875,2]
[313412899,1707328148185,-1637.02920459,0.00020875,2]
[313412900,1707328150093,-407.65122031,0.00020875,2]
[313412901,1707328150116,-154.95351395,0.00020876,4]
[313412902,1707328150146,-154.95351395,0.00020876,2]
[313412903,1707328150175,-37061.66416696,0.00022195,2]
[313412904,1707328150203,-83922.89279015,0.00022196,2]
[313412905,1707328150228,-19135.13450941,0.00022197,2]
[313412906,1707328150257,-300.0,0.0002221,2]
[313412907,1707328150284,-802.297323,0.00022212,2]
[313412908,1707328150309,-159.4566598,0.00022737,2]
[313412909,1707328150333,-166.0964028,0.000232,2]
[313412910,1707328150357,-233.9528941,0.000232,2]
[313412911,1707328150386,-462.45267987,0.000232,2]
[313412912,1707328150410,-155.56204198,0.000232,2]
[313412913,1707328150434,-329.97665564,0.000232,2]
[313412914,1707328150460,-214.65255433,0.00023201,2]
[313412915,1707328150486,-167.03141004,0.00023201,2]
[313412916,1707328150510,-364.67313618,0.00023201,2]
[313412917,1707328150533,-179.72011913,0.00023201,2]
[313412918,1707328150562,-4133.79079891,0.00023201,2]
[313412919,1707328150587,-1200.7118793,0.00023202,2]
[313412920,1707328150609,-786.0289051,0.0002323,2]
[313412921,1707328150637,-169.75251,0.00024262,2]
[313412922,1707328150664,-200.0,0.00024418,7]
[313412923,1707328150691,-5118.49408517,0.00024529,5]
[313412924,1707328150718,-335.52992191,0.00025,2]
[313412925,1707328150747,-500.0,0.00025561,2]
[313412926,1707328150773,-500.0,0.00025561,2]
[313412927,1707328150796,-500.0,0.00025561,2]
[313412928,1707328150820,-500.0,0.00025561,2]
[313412929,1707328150847,-500.0,0.00025561,2]
[313412930,1707328150871,-500.0,0.00025561,2]
[313412931,1707328150897,-500.0,0.00025561,2]
[313412932,1707328150921,-500.0,0.00025561,2]
[313412933,1707328150947,-471.12091891,0.00025561,2]
[313412934,1707328150972,-244.03028682,0.00025561,2]
[313412935,1707328150995,-500.0,0.00025561,2]
[313412936,1707328151017,-390.88028813,0.00025561,2]
[313412937,1707328151042,-396.6965334,0.00025561,2]
[313412938,1707328151069,-48267.89690698,0.00025562,2]
[313412939,1707328151094,-5065.92970973,0.00025562,2]
[313412940,1707328151120,-1205.08566404,0.00025562,2]
[313412941,1707328159092,-5852.91245033,0.00020874,2]
[313412942,1707328159119,-1268.48535625,0.0002221,5]
[313412943,1707328169139,-154.95351395,0.00022209,4]
[313412944,1707328169161,-176.70010518,0.00022209,2]
[313412945,1707328169182,-519.42578132,0.00022209,2]
[313412946,1707328209174,-71.81401088,0.00022209,2]
[313412947,1707328209197,-90.21530448,0.0002221,5]
[313412948,1707328209219,-300.0,0.0002221,2]
[313412949,1707328223285,300.0,0.00022209,2]
[313412950,1707328223969,1358.70066073,0.00022209,5]
[313413002,1707328238147,-154.95351395,0.00024655,4]
[313413003,1707328238156,-151.0,0.000255,2]
[313413005,1707328238166,-255.43148936,0.00025562,2]
[313413007,1707328238176,-1655.27653098,0.00025572,2]
[313413010,1707328238196,-154.95351395,0.00026859,2]
[313413013,1707328238206,-154.95351395,0.00026859,2]
[313413015,1707328238216,-280.0,0.0002686,15]
[313413017,1707328238225,-129.88844325,0.00027,2]
[313413019,1707328238239,-1252.50584317,0.00027,2]
[313413021,1707328238249,-469.61727774,0.00027374,3]
[313413023,1707328238261,-1307.00272226,0.00027374,3]
[313413025,1707328238270,-83922.89279015,0.00027384,2]
[313413028,1707328238279,-19135.13450941,0.00027385,2]
[313413030,1707328238290,-3069.99,0.00027386,3]
[313413031,1707328238299,-2558.33,0.00027386,3]
[313413034,1707328238309,-2131.94,0.00027386,3]
[313413036,1707328238318,-335.26553475,0.00027394,2]
[313413037,1707328238328,-507.42616248,0.00027395,2]
[313413040,1707328238338,-155.01550155,0.00027395,2]
[313413042,1707328238348,-2312.93274569,0.00027395,2]
[313413044,1707328238357,-352.99290172,0.00027396,2]
[313413046,1707328238367,-34493.47319862,0.00027396,2]
[313413048,1707328238376,-500.0,0.00027397,3]
[313413050,1707328238385,-500.0,0.00027397,2]
[313413052,1707328238395,-500.0,0.00027397,3]
[313413054,1707328238405,-500.0,0.00027397,3]
[313413056,1707328238415,-1000.0,0.00027397,2]
[313413058,1707328238424,-980.97,0.00027397,3]
[313413060,1707328238433,-500.0,0.00027397,3]
[313413062,1707328238443,-500.0,0.00027397,3]
[313413078,1707328238566,-1310.02,0.00027397,3]
[313413080,1707328238599,-500.0,0.00027397,3]
[313413082,1707328238609,-500.0,0.00027397,3]
[313413084,1707328238618,-500.0,0.00027397,2]
[313413086,1707328238628,-742.67,0.00027397,3]
[313413089,1707328238638,-500.0,0.00027397,3]
[313413091,1707328238650,-500.0,0.00027397,3]
[313413093,1707328238659,-500.0,0.00027397,3]
[313413094,1707328238668,-500.0,0.00027397,3]
[313413097,1707328238678,-500.0,0.00027397,5]
[313413098,1707328238687,-1183.52,0.00027397,3]
[313413100,1707328238697,-500.0,0.00027397,3]
[313413103,1707328238706,-500.0,0.00027397,3]
[313413105,1707328238715,-500.0,0.00027397,3]
[313413107,1707328238727,-1061.49,0.00027397,3]
[313413108,1707328238736,-500.0,0.00027397,3]
[313413111,1707328238746,-454.810239,0.00027397,3]
[313413112,1707328238755,-500.0,0.00027397,2]
[313413115,1707328238765,-1258.93,0.00027397,3]
[313413116,1707328238774,-627.11,0.00027397,3]
[313413118,1707328238784,-560.78,0.00027397,3]
[313413120,1707328238792,-500.0,0.00027397,3]
[313413122,1707328238802,-514.05731148,0.00027397,3]
[313413125,1707328238811,-2251.47,0.00027397,3]
[313413126,1707328238821,-500.0,0.00027397,3]
[313413129,1707328238830,-2678.21,0.00027397,3]
[313413131,1707328238839,-500.0,0.00027397,3]
[313413133,1707328238849,-738.52,0.00027397,3]
[313413135,1707328238858,-500.0,0.00027397,3]
[313413137,1707328238867,-7059.77,0.00027397,3]
[313413138,1707328238877,-500.0,0.00027397,3]
[313413141,1707328238887,-575.52,0.00027397,3]
[313413142,1707328238898,-500.0,0.00027397,3]
[313413143,1707328238907,-500.0,0.00027397,3]
[313413144,1707328238916,-500.0,0.00027397,3]
[313413145,1707328238925,-1334.49,0.00027397,3]
[313413146,1707328238936,-307.823136,0.000275,13]
[313413147,1707328238946,-163.45787988,0.0002767,2]
[313413148,1707328238955,-210.74405927,0.0002767,2]
[313413149,1707328238965,-500.0,0.00027671,3]
[313413150,1707328238974,-500.0,0.00027671,2]
[313413151,1707328238983,-500.0,0.00027671,3]
[313413152,1707328238993,-500.0,0.00027671,3]
[313413153,1707328239003,-1000.0,0.00027671,2]
[313413154,1707328239013,-980.97,0.00027671,3]
[313413155,1707328239022,-500.0,0.00027671,3]
[313413156,1707328239033,-500.0,0.00027671,3]
[313413157,1707328239043,-1310.02,0.00027671,3]
[313413158,1707328239052,-500.0,0.00027671,3]
[313413159,1707328239061,-500.0,0.00027671,3]
[313413160,1707328239070,-500.0,0.00027671,2]
[313413161,1707328239079,-742.67,0.00027671,3]
[313413162,1707328239089,-500.0,0.00027671,3]
[313413163,1707328239098,-500.0,0.00027671,5]
[313413164,1707328239107,-1183.52,0.00027671,3]
[313413165,1707328239117,-500.0,0.00027671,3]
[313413166,1707328239126,-500.0,0.00027671,3]
[313413167,1707328239135,-500.0,0.00027671,3]
[313413168,1707328239144,-1061.49,0.00027671,3]
[313413169,1707328239153,-500.0,0.00027671,3]
[313413170,1707328239162,-500.0,0.00027671,2]
[313413171,1707328239172,-1258.93,0.00027671,3]
[313413172,1707328239180,-627.11,0.00027671,3]
[313413173,1707328239189,-560.78,0.00027671,3]
[313413174,1707328239198,-500.0,0.00027671,3]
[313413175,1707328239207,-2251.47,0.00027671,3]
[313413176,1707328239216,-500.0,0.00027671,3]
[313413177,1707328239225,-2678.21,0.00027671,3]
[313413178,1707328239234,-738.52,0.00027671,3]
[313413179,1707328239244,-500.0,0.00027671,3]
[313413180,1707328239253,-7059.77,0.00027671,3]
[313413181,1707328239262,-500.0,0.00027671,3]
[313413182,1707328239271,-575.52,0.00027671,3]
[313413183,1707328239280,-500.0,0.00027671,3]
[313413184,1707328239290,-500.0,0.00027671,3]
[313413185,1707328239299,-500.0,0.00027671,3]
[313413186,1707328239307,-1334.49,0.00027671,3]
[313413187,1707328239316,-2416.21,0.00027944,3]
[313413188,1707328239325,-311.94,0.00027944,3]
[313413189,1707328239334,-4112.41,0.00027944,3]
[313413190,1707328239343,-4096.55,0.00027944,3]
[313413191,1707328239353,-844.86,0.00027944,3]
[313413192,1707328239362,-500.0,0.00027945,2]
[313413193,1707328239371,-500.0,0.00027945,3]
[313413194,1707328239380,-500.0,0.00027945,3]
[313413195,1707328239389,-980.97,0.00027945,3]
[313413196,1707328239398,-500.0,0.00027945,3]
[313413197,1707328239407,-500.0,0.00027945,3]
[313413198,1707328239417,-1310.02,0.00027945,3]
[313413199,1707328239427,-500.0,0.00027945,3]
[313413201,1707328239436,-500.0,0.00027945,3]
[313413203,1707328239445,-500.0,0.00027945,2]
[313413205,1707328239454,-742.67,0.00027945,3]
[313413207,1707328239463,-500.0,0.00027945,3]
[313413209,1707328239472,-506.91392923,0.00027945,5]
[313413210,1707328239481,-1183.52,0.00027945,3]
[313413212,1707328239490,-500.0,0.00027945,3]
[313413215,1707328239499,-500.0,0.00027945,3]
[313413218,1707328239509,-500.0,0.00027945,3]
[313413221,1707328239518,-1061.49,0.00027945,3]
[313413222,1707328239527,-500.0,0.00027945,3]
[313413225,1707328239537,-500.0,0.00027945,2]
[313413227,1707328239547,-1258.93,0.00027945,3]
[313413229,1707328239556,-627.11,0.00027945,3]
[313413230,1707328239565,-560.78,0.00027945,3]
[313413233,1707328239574,-500.0,0.00027945,3]
[313413236,1707328239584,-2251.47,0.00027945,3]
[313413238,1707328239593,-500.0,0.00027945,3]
[313413239,1707328239602,-2678.21,0.00027945,3]
[313413240,1707328239611,-738.52,0.00027945,3]
[313413242,1707328239620,-500.0,0.00027945,3]
[313413244,1707328239630,-7059.77,0.00027945,3]
[313413246,1707328239640,-500.0,0.00027945,3]
[313413247,1707328239652,-575.52,0.00027945,3]
[313413249,1707328239662,-500.0,0.00027945,3]
[313413250,1707328239671,-500.0,0.00027945,3]
[313413251,1707328239680,-500.0,0.00027945,3]
[313413252,1707328239691,-1334.49,0.00027945,3]
[313413253,1707328239701,-11314.77783663,0.00028,20]
[313413254,1707328239710,-1716.49476713,0.00028,2]
[313413255,1707328239720,-51930.88733907,0.00028,2]
[313413257,1707328239733,-172.497189,0.00028057,2]
[313413258,1707328239743,-72272.32608444,0.000282,3]
[313413259,1707328239904,-3238.89627542,0.000282,3]
[313413260,1707328240046,300.0,0.00022209,2]
[313413332,1707328241233,-500.0,0.00027397,3]
[313413333,1707328241243,-928.81,0.00027397,3]
[313413334,1707328241252,-500.0,0.00027397,3]
[313413335,1707328241262,-27799.16784574,0.000282,3]
[313413339,1707328241351,-653.21701208,0.000282,3]
[313413340,1707328241362,-24537.33254943,0.000282,3]
[313413341,1707328241374,-3904.61743199,0.000282,3]
[313413342,1707328241386,-2995.00002,0.000282,3]
[313413343,1707328241453,-299.69809056,0.00027671,3]
[313413344,1707328241465,-629.11190944,0.00027671,3]
[313413345,1707328241474,-500.0,0.00027671,3]
[313413346,1707328241484,-19455.9105681,0.000282,3]
[313413390,1707328243178,-2315.53,0.00027397,3]
[313413391,1707328243187,-500.0,0.00027671,3]
[313413392,1707328243196,-2315.53,0.00027671,3]
[313413393,1707328243205,-500.0,0.00027945,3]
[313413394,1707328243214,-500.0,0.00027945,3]
[313413395,1707328243223,-928.81,0.00027945,3]
[313413396,1707328243232,-2315.53,0.00027945,3]
[313413397,1707328243242,-165148.09795982,0.000282,3]
[313413398,1707328243254,-45680.39588614,0.000282,3]
[313413399,1707328243264,-588.21573289,0.000282,3]
[313413423,1707328619058,-500.0,0.00020884,2]
[313413424,1707328619080,-154.9690062,0.00020884,2]
[313413425,1707328619102,-2822.01569009,0.00020885,2]
[313413426,1707328619124,-154.9690062,0.00020885,2]
[313413427,1707328619148,-154.9690062,0.00020885,4]
[313413428,1707328619169,-167.49012731,0.00020886,2]
[313413429,1707328619190,-718.01783563,0.00020886,2]
[313413430,1707328619212,-590.02632581,0.00020886,2]
[313413431,1707328619326,-295.73444606,0.00020887,2]
[313413432,1707328619348,-681.95091466,0.00020887,2]
[313413433,1707328619370,-261.84108651,0.00020887,2]
[313413434,1707328619391,-1513.15613917,0.00020887,2]
[313413435,1707328619412,-4179.85662615,0.00020888,2]
[313413436,1707328619433,-181.51370571,0.00020888,2]
[313413437,1707328619457,-154.95351395,0.00020888,2]
[313413438,1707328619478,-154.95351395,0.00020888,2]
[313413439,1707328619500,-179.18619241,0.00020889,2]
[313413440,1707328619523,-3330.53040283,0.00020889,2]
[313413441,1707328619546,-1961.03902914,0.00020889,2]
[313413442,1707328619568,-454.810239,0.00020891,2]
[313413443,1707328619597,154.9690062,0.00020884,2]
[313413444,1707328620598,154.9690062,0.00020884,2]
[313413445,1707328646153,-158.95416115,0.00020896,2]
[313413447,1707328827074,-3592.19,0.00020974,3]
[313413448,1707328827098,-500.0,0.00020982,2]
[313413449,1707328827120,-154.9690062,0.00020983,2]
[313413450,1707328827142,-154.9690062,0.00020983,2]
[313413451,1707328827164,-179.18619241,0.00020983,2]
[313413452,1707328827197,-2044.6804249,0.00020983,2]
[313413453,1707328827249,-154.9690062,0.00020983,2]
[313413454,1707328827271,-1513.15613917,0.00020984,2]
[313413455,1707328827292,-125.00524439,0.00020984,2]
[313413471,1707329111765,5665.1235889,0.00029,30]
[313413474,1707329224748,7500.0,0.0001898,2]
[313413475,1707329224779,8391.189485,0.0001898,2]
[313413476,1707329224810,9008.810515,0.0001898,2]
[313413477,1707329228128,-1745.51182689,0.00019968,2]
[313413478,1707329228148,-167.49012731,0.00019968,2]
[313413479,1707329228169,-154.95351395,0.00019968,3]
[313413480,1707329228189,-4090.94,0.00019969,3]
[313413481,1707329228210,-3359.26856818,0.00019969,3]
[313413482,1707329246392,154.95351395,0.00017978,3]
[313413483,1707329260281,1427.76972706,0.00029,30]
[313413484,1707329272388,154.95351395,0.00017969,3]
[313413485,1707329290396,154.95351395,0.00017969,3]
[313413486,1707329308390,154.95351395,0.00017968,3]
[313413491,1707329326387,154.95351395,0.00017968,3]
[313413492,1707329327394,154.95351395,0.00017969,2]
[313413493,1707329340398,61.4684013,0.00017958,3]
[313413494,1707329340426,93.48511265,0.00017958,3]
[313413495,1707329341509,164.61487331,0.00017969,2]
[313413496,1707329346099,-560.77207727,0.00019944,3]
[313413497,1707329347106,-2443.91792273,0.00019944,3]
[313413498,1707329347129,-3605.62,0.00019947,3]
[313413499,1707329347148,-352.18460138,0.00019954,2]
[313413500,1707329347167,-214.05113646,0.00019954,2]
[313413501,1707329347187,-2822.01569009,0.00019954,2]
[313413502,1707329347207,-718.01783563,0.00019954,2]
[313413503,1707329347226,-83922.89279015,0.00019954,2]
[313413504,1707329347247,-5852.91245033,0.00019955,2]
[313413505,1707329347265,-590.02632581,0.00019955,2]
[313413506,1707329347284,-19135.13450941,0.00019955,2]
[313413507,1707329347303,-154.95351395,0.00019956,2]
[313413508,1707329347323,-154.95351395,0.00019956,2]
[313413509,1707329347342,-20955.05859825,0.00019956,2]
[313413510,1707329347361,-1687.90304115,0.00019956,2]
[313413511,1707329347380,-4179.85662615,0.00019956,2]
[313413512,1707329347401,-4326.75,0.00019956,3]
[313413513,1707329347421,-4418.98,0.00019957,3]
[313413514,1707329347444,-5192.1,0.00019957,3]
[313413515,1707329347465,-37061.66416696,0.00019966,2]
[313413516,1707329347484,-167.29092194,0.00019976,2]
[313413517,1707329347506,-1129.20113551,0.00019976,2]
[313413518,1707329347527,-608.849751,0.00019983,2]
[313413519,1707329347548,-741.39467799,0.0002,2]
[313413520,1707329347571,-150.67095252,0.00020846,2]
[313413521,1707329347591,-2007.2143418,0.00020918,2]
[313413522,1707329347612,-3754.28258322,0.00020918,2]
[313413523,1707329347631,-1201.66555398,0.00020918,2]
[313413524,1707329347653,-1676.21951517,0.00020918,2]
[313413525,1707329347673,-5223.83358614,0.00020918,2]
[313413526,1707329347693,-156.24689801,0.00020918,2]
[313413527,1707329347714,-2717.98041473,0.00020919,5]
[313413528,1707329347734,-261.94832848,0.00020982,2]
[313413529,1707329347757,-329.38174346,0.00020982,2]
[313413530,1707329347778,-506.65441958,0.00020983,2]
[313413531,1707329347798,-1270.39386047,0.00020983,2]
[313413532,1707329347820,-155.13483693,0.00020983,2]
[313413533,1707329347839,-171.19115676,0.00020983,2]
[313413534,1707329347859,-244.26799306,0.00020983,2]
[313413535,1707329347881,-298.19987264,0.00021,2]
[313413536,1707329347901,-166.666666,0.00021918,2]
[313413537,1707329347925,-200.0,0.00021952,7]
[313413538,1707329347948,-293.20559858,0.00022,4]
[313413539,1707329347974,-166.666666,0.00022431,2]